[Event "45th FIDE Womens Olympiad 2024"]
[Site "Budapest"]
[Date "2024.09.13"]
[Round "3.131"]
[White "Shaba, Linda Dalitso"]
[Black "Romany, Joy"]
[Result "0-1"]
[ECO "A46"]
[WhiteElo "1831"]
[BlackElo "2012"]
[Annotator "NA RC"]
[PlyCount "102"]
[EventDate "2024.09.05"]
[EventType "team-tourn"]
[EventCountry "HUN"]
[SourceTitle "playchess.com"]
[Source "ChessBase"]
[SourceQuality "1"]
[WhiteTeam "Zimbabwe"]
[BlackTeam "Egypt"]
[WhiteTeamCountry "ZIM"]
[BlackTeamCountry "EGY"]
[TimeControl "40/5400+30:1800+30"]

1. e4 c5 2. Nf3 e6 3. d4 cxd4 4. Nxd4 Nc6 5. g3 Nf6 6. Bg2 Be7 7. O-O O-O 8. b3 d5 9. Nxc6 bxc6 10. e5 Nd7 11. Bb2 Bc5 12. Qg4 Ba6 13. c4 Qb6 14. Nd2 Rab8 15. Rac1 Qa5 16. Bc3 Bb4 17. Bxb4 Rxb4 18. Qe2 dxc4 19. Nxc4 Bxc4 20. Rxc4 Rxc4 21. Qxc4 Nxe5 22. Qe2 Rd8 23. Rd1 Rxd1+ 24. Qxd1 c5 25. f4 Ng6 26. Qe2 Qc3 27. Be4 Nf8 28. Kg2 g6 29. Bc6 Qa5 30. Be8 Qd8 31. Bc6 h5 32. h4 Nh7 33. Bf3 Nf6 34. Qb2 Nd5 35. Qd2 Qf6 36. Bxd5 Qd8 37. Kf2 exd5 38. Qc3 Qd6 39. Qa5 Qb6 40. Qa4 c4+ 41. Ke2 Qd4 42. Qe8+ Kg7 43. Qe5+ Qxe5+ 44. fxe5 cxb3 45. axb3 f6 46. exf6+ Kxf6 47. Kd3 Ke5 48. b4 a6 49. Ke3 d4+ 50. Kf3 Kd5 51. g4 hxg4+ 0-1

[Event "45th FIDE Womens Olympiad 2024"]
[Site "Budapest"]
[Date "2024.09.13"]
[Round "3.132"]
[White "Allam, Yara"]
[Black "Wakuruwarewa, Colletta"]
[Result "1-0"]
[ECO "C11"]
[WhiteElo "1920"]
[BlackElo "1814"]
[Annotator "NA RC"]
[PlyCount "55"]
[EventDate "2024.09.05"]
[EventType "team-tourn"]
[EventCountry "HUN"]
[SourceTitle "playchess.com"]
[Source "ChessBase"]
[SourceQuality "1"]
[WhiteTeam "Egypt"]
[BlackTeam "Zimbabwe"]
[WhiteTeamCountry "EGY"]
[BlackTeamCountry "ZIM"]
[TimeControl "40/5400+30:1800+30"]

1. e4 e6 2. d4 d5 3. Nc3 Nf6 4. e5 Nfd7 5. f4 c5 6. Nf3 Nc6 7. Be3 Be7 8. Be2 O-O 9. Qd2 a6 10. O-O f6 11. f5 cxd4 12. Nxd4 Nxd4 13. Bxd4 fxe5 14. fxe6 exd4 15. exd7 dxc3 16. Qxd5+ Kh8 17. Rxf8+ Bxf8 18. dxc8=Q Qxc8 19. Kh1 cxb2 20. Rf1 Qxc2 21. Bd3 Qc6 22. Qd4 Qc1 23. Qf2 Ba3 24. Qf5 Qh6 25. Qf3 Bd6 26. g3 Rb8 27. Qf2 Be5 28. Qf8+ 1-0

[Event "45th FIDE Womens Olympiad 2024"]
[Site "Budapest"]
[Date "2024.09.13"]
[Round "3.133"]
[White "Wagener, Anna"]
[Black "Sakai, Azumi"]
[Result "1/2-1/2"]
[ECO "C01"]
[WhiteElo "2251"]
[BlackElo "1871"]
[Annotator "RC"]
[PlyCount "93"]
[EventDate "2024.09.05"]
[EventType "team-tourn"]
[EventCountry "HUN"]
[SourceTitle "playchess.com"]
[Source "ChessBase"]
[SourceQuality "1"]
[WhiteTeam "Luxembourg"]
[BlackTeam "Japan"]
[WhiteTeamCountry "LUX"]
[BlackTeamCountry "JPN"]
[TimeControl "40/5400+30:1800+30"]

1. e4 e6 2. d4 d5 3. exd5 exd5 4. Nf3 Nf6 5. Bd3 Bd6 6. O-O O-O 7. h3 h6 8. Nc3 c6 9. Re1 Be6 10. Ne5 Nbd7 11. Bf4 Nb6 12. Qf3 Nc4 13. b3 Bb4 14. bxc4 Bxc3 15. Bh7+ Kxh7 16. Qxc3 dxc4 17. Nxc4 Nd5 18. Qd3+ Kg8 19. Bg3 Nb4 20. Qc3 Nd5 21. Qa3 Nb6 22. Nd6 Nc4 23. Nxc4 Bxc4 24. Qb4 b5 25. Bd6 Re8 26. Rxe8+ Qxe8 27. Re1 Qd8 28. a3 Qg5 29. Qc3 Bd5 30. Bg3 h5 31. h4 Qg4 32. Re5 Qd1+ 33. Kh2 f6 34. Re7 a5 35. f3 Qf1 36. Qe3 Bf7 37. Qe4 Rc8 38. Qf5 Re8 39. Rxe8+ Bxe8 40. Qe6+ Bf7 41. Qc8+ Kh7 42. Qxc6 Qc4 43. Qe4+ Bg6 44. Qe1 b4 45. axb4 axb4 46. Bd6 Qxd4 47. Qxb4 1/2-1/2

[Event "45th FIDE Womens Olympiad 2024"]
[Site "Budapest"]
[Date "2024.09.13"]
[Round "3.134"]
[White "Kinoshita, Kanako"]
[Black "Steil-Antoni, Fiona"]
[Result "0-1"]
[ECO "D05"]
[WhiteElo "1822"]
[BlackElo "2085"]
[Annotator "NA RC"]
[PlyCount "90"]
[EventDate "2024.09.05"]
[EventType "team-tourn"]
[EventCountry "HUN"]
[SourceTitle "playchess.com"]
[Source "ChessBase"]
[SourceQuality "1"]
[WhiteTeam "Japan"]
[BlackTeam "Luxembourg"]
[WhiteTeamCountry "JPN"]
[BlackTeamCountry "LUX"]
[TimeControl "40/5400+30:1800+30"]

1. d4 d5 2. Nf3 Nf6 3. e3 e6 4. Bd3 c5 5. b3 Be7 6. O-O O-O 7. Bb2 b6 8. Nbd2 Bb7 9. Ne5 Nbd7 10. f4 Ne4 11. c4 f5 12. Ndf3 Ndf6 13. cxd5 Nxd5 14. Qe1 Nb4 15. Rd1 Nxd3 16. Rxd3 Ba6 17. Nc4 b5 18. Nce5 c4 19. bxc4 bxc4 20. Nc6 Qc7 21. Nxe7+ Qxe7 22. Ba3 Qc7 23. Bxf8 cxd3 24. Bb4 d2 25. Nxd2 Nxd2 26. Qxd2 Bxf1 27. Kxf1 Qb7 28. Bc5 Rb8 29. Qa5 Qe4 30. Qc3 Qb1+ 31. Kf2 Qb2+ 32. Qxb2 Rxb2+ 33. Kf3 Rxa2 34. g4 a5 35. h3 a4 36. gxf5 exf5 37. e4 fxe4+ 38. Kxe4 Rh2 39. Ke5 Kf7 40. Kd6 Rxh3 41. Kc6 a3 42. d5 a2 43. Bd4 Rh1 44. d6 a1=Q 45. Bc5 Qa4+ 0-1

[Event "45th FIDE Womens Olympiad 2024"]
[Site "Budapest"]
[Date "2024.09.13"]
[Round "3.135"]
[White "Bakalarz, Grazyna"]
[Black "Mitsuyama, Rikka"]
[Result "1-0"]
[ECO "D37"]
[WhiteElo "1928"]
[BlackElo "1738"]
[Annotator "NA RC"]
[PlyCount "77"]
[EventDate "2024.09.05"]
[EventType "team-tourn"]
[EventCountry "HUN"]
[SourceTitle "playchess.com"]
[Source "ChessBase"]
[SourceQuality "1"]
[WhiteTeam "Luxembourg"]
[BlackTeam "Japan"]
[WhiteTeamCountry "LUX"]
[BlackTeamCountry "JPN"]
[TimeControl "40/5400+30:1800+30"]

1. d4 d5 2. c4 e6 3. Nf3 Nf6 4. Nc3 Be7 5. Bf4 O-O 6. e3 c6 7. Be2 Nbd7 8. Rc1 Nh5 9. Bg3 Nxg3 10. hxg3 Nf6 11. Qc2 g6 12. a3 dxc4 13. Bxc4 b5 14. Bd3 b4 15. axb4 Bxb4 16. O-O c5 17. dxc5 Bxc5 18. Rfd1 Qe7 19. Ne4 Bb6 20. Qa4 Nd5 21. Nd4 Bb7 22. Nc3 Nf6 23. Bb5 Ng4 24. Nc6 Qg5 25. Ne4 Qh6 26. Nc5 Qh2+ 27. Kf1 Nxe3+ 28. fxe3 a6 29. Ne7+ Kh8 30. Nxb7 Bxe3 31. Bc6 Qg1+ 32. Ke2 Qf2+ 33. Kd3 Qxg3 34. Bf3 Qg5 35. Rc7 Bb6 36. Rd7 Qe3+ 37. Kc2 Rab8 38. Qh4 Rfe8 39. Qf6# 1-0

[Event "45th FIDE Womens Olympiad 2024"]
[Site "Budapest"]
[Date "2024.09.13"]
[Round "3.136"]
[White "Takayasu, Melody"]
[Black "Lyon, Hannah Jane"]
[Result "0-1"]
[ECO "B12"]
[WhiteElo "1768"]
[BlackElo "1797"]
[Annotator "NA"]
[PlyCount "90"]
[EventDate "2024.09.05"]
[EventType "team-tourn"]
[EventCountry "HUN"]
[SourceTitle "playchess.com"]
[Source "ChessBase"]
[SourceQuality "1"]
[WhiteTeam "Japan"]
[BlackTeam "Luxembourg"]
[WhiteTeamCountry "JPN"]
[BlackTeamCountry "LUX"]
[TimeControl "40/5400+30:1800+30"]

1. e4 c6 2. d4 d5 3. e5 Bf5 4. c4 e6 5. Nc3 Ne7 6. Nf3 h6 7. b3 Nd7 8. h3 Qa5 9. Bd2 Qc7 10. g4 Bh7 11. c5 f6 12. exf6 gxf6 13. Qc1 e5 14. Bxh6 exd4 15. Bxf8 Rxf8 16. Nxd4 Nxc5 17. b4 Qe5+ 18. Qe3 Ne4 19. f4 Qd6 20. Nxe4 Bxe4 21. Rh2 Qxb4+ 22. Qd2 Qd6 23. Bg2 Bh7 24. Bf3 Ng6 25. Re2+ Kf7 26. f5 Qg3+ 27. Kf1 Ne5 28. Qh6 Rh8 29. Qh5+ Kg8 30. Rxe5 fxe5 31. Qg5+ Kf7 32. Qh5+ Ke7 33. Qg5+ Kd6 34. Qf6+ Kc5 35. Nb3+ Kb6 36. Nd2 Qxh3+ 37. Kf2 Qh2+ 38. Bg2 Qf4+ 39. Nf3 Rae8 40. Rb1+ Kc5 41. Qg5 Qxg5 42. Nxg5 b5 43. Rc1+ Kb6 44. Nf7 Rhg8 45. Nh6 Rg7 0-1

[Event "45th FIDE Womens Olympiad 2024"]
[Site "Budapest"]
[Date "2024.09.13"]
[Round "3.137"]
[White "Morales Santos, Natasha"]
[Black "Ortiz Verdezoto, Anahi"]
[Result "0-1"]
[ECO "B14"]
[WhiteElo "1972"]
[BlackElo "2229"]
[Annotator "RC"]
[PlyCount "160"]
[EventDate "2024.09.05"]
[EventType "team-tourn"]
[EventCountry "HUN"]
[SourceTitle "playchess.com"]
[Source "ChessBase"]
[SourceQuality "1"]
[WhiteTeam "Puerto Rico"]
[BlackTeam "Ecuador"]
[WhiteTeamCountry "PUR"]
[BlackTeamCountry "ECU"]
[TimeControl "40/5400+30:1800+30"]

1. d4 Nf6 2. c4 e6 3. Nc3 Bb4 4. e3 c5 5. Bd2 cxd4 6. exd4 O-O 7. Bd3 d5 8. Nf3 dxc4 9. Bxc4 Nc6 10. a3 Be7 11. Be3 b6 12. O-O Bb7 13. Qe2 Na5 14. Ba2 Nd5 15. Rac1 Nxc3 16. Rxc3 Bd5 17. Bb1 Rc8 18. Rfc1 Rxc3 19. Rxc3 Qa8 20. b4 Nc6 21. Ne5 Nxe5 22. dxe5 g6 23. Bh6 Rc8 24. Rxc8+ Qxc8 25. Qc2 Qd7 26. h3 Bb7 27. Qd3 Qc6 28. f3 Qc7 29. Qb5 Bc6 30. Qc4 Qd7 31. Qd3 Bd5 32. Bc2 a5 33. bxa5 bxa5 34. Qa6 Bc5+ 35. Kh2 Qc7 36. Ba4 Qxe5+ 37. f4 Qc7 38. Qb5 Bf8 39. Qe8 Qe7 40. Qb8 Qxa3 41. Qd8 Qe7 42. Qb8 f6 43. Bd1 Kf7 44. Bxf8 Qxf8 45. Qa7+ Qe7 46. Qxa5 Qb7 47. Qd2 Qc7 48. Kg1 Qc5+ 49. Kh2 e5 50. fxe5 fxe5 51. Qh6 Kg8 52. Qg5 Qd6 53. Bg4 e4+ 54. Kh1 Bf7 55. Qe3 Qe5 56. Kg1 h5 57. Be2 g5 58. Kf2 Kg7 59. g3 h4 60. gxh4 gxh4 61. Bg4 Kg6 62. Qb6+ Kg7 63. Qe3 Qf6+ 64. Ke1 Bg6 65. Qa7+ Kh8 66. Qa8+ Kg7 67. Qa7+ Bf7 68. Qe3 Bd5 69. Qa7+ Kg6 70. Qe3 Qb2 71. Qd2 Qb3 72. Qe2 e3 73. Bh5+ Kf6 74. Qg4 Qc3+ 75. Kf1 Qc1+ 76. Qd1 Bc4+ 77. Kg2 Qxd1 78. Bxd1 e2 79. Bxe2 Bxe2 80. Kf2 Bh5 0-1

[Event "45th FIDE Womens Olympiad 2024"]
[Site "Budapest"]
[Date "2024.09.13"]
[Round "3.138"]
[White "Wagenschuetz, Evelyn"]
[Black "Rivera Negron, Yanira"]
[Result "1-0"]
[ECO "C14"]
[WhiteElo "2036"]
[BlackElo "1805"]
[Annotator "NA RC"]
[PlyCount "59"]
[EventDate "2024.09.05"]
[EventType "team-tourn"]
[EventCountry "HUN"]
[SourceTitle "playchess.com"]
[Source "ChessBase"]
[SourceQuality "1"]
[WhiteTeam "Ecuador"]
[BlackTeam "Puerto Rico"]
[WhiteTeamCountry "ECU"]
[BlackTeamCountry "PUR"]
[TimeControl "40/5400+30:1800+30"]

1. e4 e6 2. d4 d5 3. Nc3 Nf6 4. Bg5 Be7 5. e5 Nfd7 6. Bxe7 Qxe7 7. f4 a6 8. Qg4 f6 9. Bd3 fxe5 10. fxe5 c5 11. Nf3 cxd4 12. Ne2 Nc6 13. Nexd4 Nxd4 14. Nxd4 Nc5 15. O-O Nxd3 16. cxd3 Bd7 17. Qh5+ g6 18. Qh6 O-O-O 19. Rf6 Qb4 20. Nb3 Rdf8 21. Rc1+ Kb8 22. Nc5 Rd8 23. Rf7 Bc8 24. Qe3 d4 25. Qf2 b6 26. Rc4 Qa5 27. b4 Qa3 28. Nb3 Rd7 29. Rf8 Rxf8 30. Qxf8 1-0

[Event "45th FIDE Womens Olympiad 2024"]
[Site "Budapest"]
[Date "2024.09.13"]
[Round "3.139"]
[White "Vega Jimenez, Keyshla M."]
[Black "Vasquez Ramirez, Rocio"]
[Result "0-1"]
[ECO "B24"]
[WhiteElo "1769"]
[BlackElo "1981"]
[Annotator "NA RC"]
[PlyCount "90"]
[EventDate "2024.09.05"]
[EventType "team-tourn"]
[EventCountry "HUN"]
[SourceTitle "playchess.com"]
[Source "ChessBase"]
[SourceQuality "1"]
[WhiteTeam "Puerto Rico"]
[BlackTeam "Ecuador"]
[WhiteTeamCountry "PUR"]
[BlackTeamCountry "ECU"]
[TimeControl "40/5400+30:1800+30"]

1. e4 c5 2. Nc3 a6 3. g3 Nc6 4. Bg2 e6 5. Nh3 Nf6 6. d3 Be7 7. O-O O-O 8. f4 d5 9. e5 Nd7 10. Qg4 Nd4 11. Qd1 Nf5 12. Nf2 b5 13. Ne2 Rb8 14. Ng4 d4 15. Nf2 h5 16. Ne4 Nb6 17. g4 hxg4 18. N2g3 Nd5 19. Nxf5 exf5 20. Ng3 g6 21. Qe2 Be6 22. a3 Qb6 23. Kh1 Rfc8 24. Bd2 c4 25. Rae1 c3 26. Bc1 b4 27. axb4 cxb2 28. Bxb2 Qxb4 29. Bc1 Qc3 30. Rf2 Rb1 31. Nf1 Ba3 32. Bd2 Qxc2 33. Rxb1 Qxb1 34. Be1 Rc1 35. Ba5 Ne3 36. Bd2 Rc2 37. Qe1 Qxe1 38. Bxe1 Nxg2 39. Kxg2 Bd5+ 40. Kg3 Rc1 41. Ba5 Rd1 42. Bd2 a5 43. h3 gxh3 44. Kxh3 Bb4 45. Kh4 Rxf1 0-1

[Event "45th FIDE Womens Olympiad 2024"]
[Site "Budapest"]
[Date "2024.09.13"]
[Round "3.140"]
[White "Miranda Vargas, Analia Karen"]
[Black "Alvarado Perez, Coralys M."]
[Result "1/2-1/2"]
[ECO "B01"]
[WhiteElo "1891"]
[BlackElo "1694"]
[Annotator "NA RC"]
[PlyCount "55"]
[EventDate "2024.09.05"]
[EventType "team-tourn"]
[EventCountry "HUN"]
[SourceTitle "playchess.com"]
[Source "ChessBase"]
[SourceQuality "1"]
[WhiteTeam "Ecuador"]
[BlackTeam "Puerto Rico"]
[WhiteTeamCountry "ECU"]
[BlackTeamCountry "PUR"]
[TimeControl "40/5400+30:1800+30"]

1. e4 d5 2. exd5 Qxd5 3. Nc3 Qa5 4. Bc4 Nf6 5. h3 Nc6 6. Nf3 Bf5 7. d3 e6 8. Bd2 Bb4 9. a3 Bxc3 10. Bxc3 Qb6 11. Qe2 O-O-O 12. g4 Bg6 13. O-O-O Rhe8 14. Rhg1 Qc5 15. h4 h6 16. g5 hxg5 17. hxg5 Nh5 18. Nh4 Nf4 19. Qf3 e5 20. Rde1 Bh5 21. Qe4 Qxf2 22. Qf5+ Kb8 23. Rh1 Ne2+ 24. Kd2 Nf4+ 25. Kc1 Ne2+ 26. Kd2 Nf4+ 27. Kc1 Ne2+ 28. Kd2 1/2-1/2

[Event "45th FIDE Womens Olympiad 2024"]
[Site "Budapest"]
[Date "2024.09.13"]
[Round "3.141"]
[White "De Blecourt, Sandra"]
[Black "Sawan, Eman"]
[Result "0-1"]
[ECO "E70"]
[WhiteElo "2065"]
[BlackElo "1972"]
[Annotator "NA RC"]
[PlyCount "100"]
[EventDate "2024.09.05"]
[EventType "team-tourn"]
[EventCountry "HUN"]
[SourceTitle "playchess.com"]
[Source "ChessBase"]
[SourceQuality "1"]
[WhiteTeam "Denmark"]
[BlackTeam "Palestine"]
[WhiteTeamCountry "DEN"]
[BlackTeamCountry "PLE"]
[TimeControl "40/5400+30:1800+30"]

1. d4 Nf6 2. c4 g6 3. Nc3 Bg7 4. e4 d6 5. Bd3 O-O 6. Nge2 Nc6 7. O-O e5 8. d5 Nd4 9. Nxd4 exd4 10. Ne2 Qe7 11. f3 Nd7 12. Bc2 Qf6 13. Rb1 c5 14. dxc6 bxc6 15. b4 c5 16. Nf4 Nb6 17. Bd3 Bd7 18. Qb3 Ba4 19. Qa3 cxb4 20. Rxb4 Bc6 21. Nd5 Bxd5 22. cxd5 Nd7 23. Bd2 Nc5 24. Rfb1 h5 25. Bf1 h4 26. h3 Rfc8 27. Rc4 Qe7 28. Qc1 Bf6 29. Rb5 Rab8 30. Qb1 Rxb5 31. Qxb5 Qe5 32. f4 Qxe4 33. Rc1 Qxd5 34. Bc4 Qc6 35. Qb1 Kg7 36. Re1 d5 37. Bb5 Qb6 38. f5 Ne4 39. fxg6 Nxd2 40. Qf5 Qc5 41. gxf7 d3+ 42. Kh1 Ne4 43. Qg4+ Kxf7 44. Qh5+ Kg7 45. Qg4+ Kh6 46. Qf4+ Bg5 47. Qf7 Nf2+ 48. Kh2 Qc7+ 49. Qxc7 Rxc7 50. Re6+ Kg7 0-1

[Event "45th FIDE Womens Olympiad 2024"]
[Site "Budapest"]
[Date "2024.09.13"]
[Round "3.142"]
[White "Hamouri, Taqwa"]
[Black "Kakulidis, Ellen"]
[Result "0-1"]
[ECO "C56"]
[WhiteElo "1845"]
[BlackElo "2048"]
[Annotator "NA RC"]
[PlyCount "90"]
[EventDate "2024.09.05"]
[EventType "team-tourn"]
[EventCountry "HUN"]
[SourceTitle "playchess.com"]
[Source "ChessBase"]
[SourceQuality "1"]
[WhiteTeam "Palestine"]
[BlackTeam "Denmark"]
[WhiteTeamCountry "PLE"]
[BlackTeamCountry "DEN"]
[TimeControl "40/5400+30:1800+30"]

1. e4 e5 2. Nf3 Nc6 3. Bc4 Nf6 4. d4 exd4 5. O-O Nxe4 6. Re1 d5 7. Bxd5 Qxd5 8. Nc3 Qh5 9. Nxe4 Be6 10. Bg5 Bd6 11. Nxd6+ cxd6 12. Bf4 Qd5 13. c3 Rc8 14. Nxd4 Nxd4 15. Qxd4 Qxd4 16. cxd4 Kd7 17. d5 Bf5 18. Rac1 Rhe8 19. Bd2 Rxc1 20. Rxc1 Be4 21. Bc3 Bxd5 22. f3 f6 23. a3 Bc6 24. Kf2 Bb5 25. h4 Re2+ 26. Kg3 h5 27. Rd1 Bc6 28. Rg1 Ke6 29. Kf4 Kf7 30. Bd4 a6 31. g4 hxg4 32. Rxg4 Bd7 33. Rg1 Rh2 34. Bc3 Rxh4+ 35. Kg3 Rh3+ 36. Kg2 Rh5 37. Rd1 d5 38. Bb4 Bc6 39. Kg3 Re5 40. Bc3 Re2 41. Rd4 g5 42. f4 Kg6 43. fxg5 fxg5 44. Kg4 Re3 45. Bd2 Bd7# 0-1

[Event "45th FIDE Womens Olympiad 2024"]
[Site "Budapest"]
[Date "2024.09.13"]
[Round "3.143"]
[White "Guindy, Esmat Susanne"]
[Black "Faqeeh, Yara"]
[Result "1-0"]
[ECO "E67"]
[WhiteElo "2015"]
[BlackElo "1671"]
[Annotator "NA RC"]
[PlyCount "81"]
[EventDate "2024.09.05"]
[EventType "team-tourn"]
[EventCountry "HUN"]
[SourceTitle "playchess.com"]
[Source "ChessBase"]
[SourceQuality "1"]
[WhiteTeam "Denmark"]
[BlackTeam "Palestine"]
[WhiteTeamCountry "DEN"]
[BlackTeamCountry "PLE"]
[TimeControl "40/5400+30:1800+30"]

1. d4 Nf6 2. g3 g6 3. Bg2 Bg7 4. Nf3 d6 5. O-O Nbd7 6. c4 O-O 7. Nc3 Re8 8. e4 e5 9. h3 Rb8 10. Be3 b6 11. Re1 Bb7 12. d5 Nh5 13. Rc1 Rf8 14. Qd2 Bh8 15. Bh6 Ng7 16. Ng5 Re8 17. f4 Nf6 18. fxe5 dxe5 19. g4 Qe7 20. Qf2 Nd7 21. Rf1 f6 22. Bxg7 Bxg7 23. Ne6 Bh8 24. Nxc7 Rec8 25. N3b5 a6 26. d6 Qd8 27. Nc3 Nc5 28. Rcd1 Qd7 29. b4 Ne6 30. N3d5 Bxd5 31. Nxd5 Rf8 32. Nxb6 Qc6 33. c5 Nd4 34. Rxd4 Rxb6 35. cxb6 exd4 36. Qxd4 Rd8 37. e5 Qd7 38. Qc4+ Kf8 39. Qc7 Bg7 40. e6 Qxe6 41. Qxd8+ 1-0

[Event "45th FIDE Womens Olympiad 2024"]
[Site "Budapest"]
[Date "2024.09.13"]
[Round "3.144"]
[White "Natsheh, Wajd"]
[Black "Durrfeld, Sofie Bech"]
[Result "0-1"]
[ECO "A45"]
[WhiteElo "1739"]
[BlackElo "1937"]
[Annotator "NA RC"]
[PlyCount "88"]
[EventDate "2024.09.05"]
[EventType "team-tourn"]
[EventCountry "HUN"]
[SourceTitle "playchess.com"]
[Source "ChessBase"]
[SourceQuality "1"]
[WhiteTeam "Palestine"]
[BlackTeam "Denmark"]
[WhiteTeamCountry "PLE"]
[BlackTeamCountry "DEN"]
[TimeControl "40/5400+30:1800+30"]

1. d4 Nf6 2. Bg5 Ne4 3. Bf4 d5 4. f3 Nd6 5. Nc3 e6 6. e4 c6 7. Bd3 Qb6 8. Nge2 Be7 9. O-O Nd7 10. Na4 Qd8 11. Qe1 g5 12. Bxd6 Bxd6 13. e5 Bc7 14. f4 b5 15. Nac3 Bb7 16. f5 Qe7 17. a4 b4 18. Na2 c5 19. c3 b3 20. Nac1 c4 21. Bb1 f6 22. Ng3 fxe5 23. fxe6 Qxe6 24. Bf5 Qd6 25. dxe5 Nxe5 26. Nce2 O-O 27. Nd4 Rae8 28. Qd2 h6 29. Nb5 Qb6+ 30. Nd4 Ng6 31. a5 Qd6 32. Bg4 Nf4 33. Kh1 Bc8 34. Bf3 g4 35. Nb5 gxf3 36. Nxd6 fxg2+ 37. Kg1 gxf1=Q+ 38. Rxf1 Bxd6 39. Qd4 Nh3+ 40. Kh1 Rxf1+ 41. Nxf1 Be6 42. Qf6 Kh7 43. Ne3 Rg8 44. Ng2 Rf8 0-1

[Event "45th FIDE Womens Olympiad 2024"]
[Site "Budapest"]
[Date "2024.09.13"]
[Round "3.145"]
[White "Park, Sunwoo"]
[Black "Maksimovic, Masa"]
[Result "1/2-1/2"]
[ECO "B26"]
[WhiteElo "1877"]
[BlackElo "2093"]
[Annotator "NA RC"]
[PlyCount "101"]
[EventDate "2024.09.05"]
[EventType "team-tourn"]
[EventCountry "HUN"]
[SourceTitle "playchess.com"]
[Source "ChessBase"]
[SourceQuality "1"]
[WhiteTeam "South Korea"]
[BlackTeam "Bosnia & Herzegovina"]
[WhiteTeamCountry "KOR"]
[BlackTeamCountry "BIH"]
[TimeControl "40/5400+30:1800+30"]

1. e4 c5 2. Nc3 d6 3. g3 Nc6 4. Bg2 g6 5. d3 Bg7 6. Be3 e6 7. Qd2 h6 8. Nge2 Nd4 9. Nd1 Ne7 10. c3 Nxe2 11. Qxe2 O-O 12. O-O Rb8 13. f4 b6 14. d4 Bb7 15. Nf2 Qc8 16. Rfd1 d5 17. Rac1 dxe4 18. dxc5 bxc5 19. Nxe4 Bxe4 20. Bxe4 Nf5 21. Bf2 Qc7 22. Rd2 Rfd8 23. Rcd1 Rxd2 24. Rxd2 Rb6 25. Qd3 Rd6 26. Qc2 Rxd2 27. Qxd2 Nd6 28. Bd3 Nc8 29. Qe3 c4 30. Bf1 Nb6 31. Qe4 Bf8 32. Qd4 Bg7 33. Qe4 Bf8 34. Qe3 Bg7 35. Qc5 Qxc5 36. Bxc5 Na4 37. Ba3 Bf8 38. Bxf8 Kxf8 39. Bxc4 Nxb2 40. Bb3 Ke7 41. Kf2 Nd3+ 42. Ke2 Nc5 43. Ke3 Kd6 44. Kd4 f6 45. Bc2 g5 46. fxg5 fxg5 47. h4 gxh4 48. gxh4 e5+ 49. Ke3 Ke7 50. Kf3 Kf7 51. Kg4 1/2-1/2

[Event "45th FIDE Womens Olympiad 2024"]
[Site "Budapest"]
[Date "2024.09.13"]
[Round "3.146"]
[White "Babic, Milana"]
[Black "Kang, Sohyun"]
[Result "1-0"]
[ECO "A07"]
[WhiteElo "2080"]
[BlackElo "1726"]
[Annotator "NA RC"]
[PlyCount "99"]
[EventDate "2024.09.05"]
[EventType "team-tourn"]
[EventCountry "HUN"]
[SourceTitle "playchess.com"]
[Source "ChessBase"]
[SourceQuality "1"]
[WhiteTeam "Bosnia & Herzegovina"]
[BlackTeam "South Korea"]
[WhiteTeamCountry "BIH"]
[BlackTeamCountry "KOR"]
[TimeControl "40/5400+30:1800+30"]

1. Nf3 d5 2. g3 c6 3. Bg2 Bf5 4. O-O e6 5. Nh4 Bg4 6. d3 Be7 7. Nf3 Nf6 8. b3 O-O 9. Bb2 h6 10. c4 a5 11. Na3 Re8 12. Nc2 Bf5 13. a3 Qb6 14. Rb1 Nbd7 15. Bc3 Qa6 16. Ne3 Bh7 17. b4 dxc4 18. Nxc4 Nd5 19. Bd2 axb4 20. axb4 b5 21. Ne3 N7f6 22. Qb3 Qa2 23. Rfc1 Rec8 24. Nxd5 Nxd5 25. e4 Nf6 26. h3 Qxb3 27. Rxb3 Ra2 28. Be3 Nd7 29. Nd4 Raa8 30. Nxc6 Bf8 31. Kh2 Kh8 32. Nd4 Rxc1 33. Bxc1 Ra4 34. Bd2 Ra2 35. Be1 g5 36. Nxb5 Re2 37. Rb1 Kg8 38. Nc3 Rc2 39. Bf3 Bg7 40. Bd1 Rxc3 41. Bxc3 Bxc3 42. Kg2 Kg7 43. f4 Nb6 44. Kf3 f6 45. Rc1 Bd4 46. Rc7+ Kh8 47. Bb3 Bg8 48. Rc6 e5 49. Bxg8 Kxg8 50. Rxf6 1-0

[Event "45th FIDE Womens Olympiad 2024"]
[Site "Budapest"]
[Date "2024.09.13"]
[Round "3.147"]
[White "Cho, Yeonhee"]
[Black "Jacimovic, Sara"]
[Result "0-1"]
[ECO "C47"]
[WhiteElo "1696"]
[BlackElo "1981"]
[Annotator "NA RC"]
[PlyCount "108"]
[EventDate "2024.09.05"]
[EventType "team-tourn"]
[EventCountry "HUN"]
[SourceTitle "playchess.com"]
[Source "ChessBase"]
[SourceQuality "1"]
[WhiteTeam "South Korea"]
[BlackTeam "Bosnia & Herzegovina"]
[WhiteTeamCountry "KOR"]
[BlackTeamCountry "BIH"]
[TimeControl "40/5400+30:1800+30"]

1. e4 e5 2. Nf3 Nc6 3. Be2 Nf6 4. Nc3 Bc5 5. Nxe5 Nxe5 6. d4 Bd6 7. dxe5 Bxe5 8. Nb5 a6 9. f4 Bxf4 10. Bxf4 axb5 11. e5 Ne4 12. Qd5 Ng5 13. O-O Ne6 14. Be3 Qe7 15. Rf3 c6 16. Qd6 Qxd6 17. exd6 Ra4 18. c3 O-O 19. a3 Ra6 20. Rd1 Re8 21. Bd3 Ra4 22. Bc2 Ra6 23. Bb3 b6 24. Rdf1 Rf8 25. Rd1 Re8 26. Bc1 c5 27. Bd5 Ra7 28. Re3 Bb7 29. Bxe6 Rxe6 30. Rxe6 fxe6 31. Bg5 Ra8 32. Be7 Bd5 33. Re1 Kf7 34. Rf1+ Kg6 35. h4 h5 36. Kh2 Be4 37. Kg3 Bf5 38. Re1 b4 39. axb4 cxb4 40. cxb4 Ra4 41. Re2 Rxb4 42. Kf2 Rd4 43. Kg3 b5 44. Re5 b4 45. Re3 Bc2 46. Kh3 b3 47. Re5 Bf5+ 48. Kg3 Rd2 49. Rb5 Rxb2 50. Bg5 Be4 51. Bc1 Rxg2+ 52. Kh3 Rc2 53. Ba3 Bd5 54. Rb4 Kf5 0-1

[Event "45th FIDE Womens Olympiad 2024"]
[Site "Budapest"]
[Date "2024.09.13"]
[Round "3.148"]
[White "Mimic, Sofija"]
[Black "Kim, Sarang"]
[Result "0-1"]
[ECO "C17"]
[WhiteElo "1809"]
[BlackElo "1732"]
[Annotator "NA"]
[PlyCount "84"]
[EventDate "2024.09.05"]
[EventType "team-tourn"]
[EventCountry "HUN"]
[SourceTitle "playchess.com"]
[Source "ChessBase"]
[SourceQuality "1"]
[WhiteTeam "Bosnia & Herzegovina"]
[BlackTeam "South Korea"]
[WhiteTeamCountry "BIH"]
[TimeControl "40/5400+30:1800+30"]

1. e4 e6 2. d4 d5 3. Nc3 Bb4 4. e5 c5 5. Bd2 cxd4 6. Nb5 Bc5 7. b4 Be7 8. Qg4 g6 9. Qxd4 Nc6 10. Qb2 a6 11. Na3 Nxe5 12. f4 Nd7 13. Qxh8 Ndf6 14. Bc3 Kf8 15. Nf3 Qb6 16. O-O-O a5 17. Ng5 Qe3+ 18. Kb1 Qxc3 19. Nxh7+ Ke8 20. Bb5+ Bd7 21. Rd3 Qxb4+ 22. Rb3 Qd4 23. Bxd7+ Kxd7 24. Rxb7+ Kc6 25. Rc7+ Kb6 26. Rxe7 Qb4+ 27. Ka1 Qc3+ 28. Kb1 Rb8 29. Nxf6 Ka6+ 30. Kc1 Qxa3+ 31. Kd2 Qb4+ 32. Ke2 Nxe7 33. Qg7 Nc6 34. Qxf7 Nd4+ 35. Kf2 Qd2+ 36. Kg3 Qe3+ 37. Kg4 Qe2+ 38. Kh3 Rh8+ 39. Nh7 Qh5+ 40. Kg3 Rc8 41. Ng5 Nf5+ 42. Kf2 Rxc2+ 0-1